fUST/lending_fUST_20240613
["ID","MTS","AMOUNT","RATE_DAILY","PERIOD"]
[329333259,1718253055442,-153.0,0.00018357,2]
[329333260,1718253055457,-153.0,0.00018357,2]
[329333261,1718253055478,-153.0,0.00018357,2]
[329333262,1718253055495,-153.0,0.00018357,2]
[329333263,1718253055521,-153.0,0.00018357,2]
[329333264,1718253055566,-621.32703067,0.00018357,2]
[329333265,1718253055591,-410.7646814,0.00018411,2]
[329333266,1718253055606,-162.0,0.0001845,2]
[329333267,1718253055630,-242.4,0.00018483,2]
[329333268,1718253055658,-608.68419469,0.000185,2]
[329333269,1718253055669,-1000.60071855,0.000185,2]
[329333270,1718253055685,-153.0,0.0001856,2]
[329333271,1718253055702,-153.0,0.0001856,2]
[329333272,1718253055715,-306.0,0.0001856,2]
[329333273,1718253055729,-153.0,0.0001856,2]
[329333274,1718253055742,-153.0,0.0001856,2]
[329333275,1718253055782,-153.0,0.0001856,2]
[329333276,1718253055841,-153.0,0.00018573,2]
[329333277,1718253055871,-150.378,0.00018574,2]
[329333278,1718253055900,-150.157,0.00018574,2]
[329333279,1718253055921,-166.666666,0.00018575,2]
[329333280,1718253055941,-1750.0,0.00018593,2]
[329333281,1718253055954,-500.0,0.00018593,2]
[329333282,1718253055996,-151.064,0.00018593,2]
[329333283,1718253056028,-179.83232979,0.00018629,2]
[329333284,1718253056081,-26456.4090235,0.0001863,13]
[329333285,1718253056108,-500.0,0.0001863,2]
[329333286,1718253056144,-500.0,0.0001863,2]
[329333287,1718253056165,-2836.97,0.0001863,2]
[329333288,1718253056190,-500.0,0.0001863,2]
[329333289,1718253056201,-500.0,0.0001863,2]
[329333290,1718253056226,-616.6,0.0001863,2]
[329333291,1718253056245,-678.18,0.0001863,2]
[329333292,1718253056264,-500.0,0.0001863,2]
[329333293,1718253056276,-1381.4,0.0001863,2]
[329333294,1718253056288,-500.0,0.0001863,2]
[329333295,1718253056301,-1134.36,0.0001863,2]
[329333296,1718253056311,-763.32,0.0001863,2]
[329333297,1718253056322,-587.11,0.0001863,2]
[329333298,1718253056334,-800.32,0.0001863,2]
[329333299,1718253056345,-500.0,0.0001863,2]
[329333300,1718253056356,-914.89,0.0001863,2]
[329333301,1718253056367,-1764.78,0.0001863,2]
[329333302,1718253056380,-500.0,0.0001863,2]
[329333303,1718253056414,-500.0,0.0001863,2]
[329333304,1718253056440,-500.0,0.0001863,2]
[329333305,1718253056569,-4676.78,0.0001863,2]
[329333306,1718253056581,-604.2,0.0001863,2]
[329333307,1718253056595,-2858.68,0.0001863,2]
[329333308,1718253056608,-500.0,0.0001863,2]
[329333309,1718253056635,-151.0,0.0001863,2]
[329333310,1718253056647,-4194.98,0.0001863,2]
[329333311,1718253056658,-1170.63,0.0001863,2]
[329333312,1718253056720,-627.66,0.0001863,2]
[329333313,1718253056732,-1382.93,0.0001863,2]
[329333314,1718253056743,-500.0,0.0001863,2]
[329333315,1718253056756,-1578.675525,0.0001863,2]
[329333316,1718253056768,-151.0,0.0001863,2]
[329333317,1718253056780,-1578.675525,0.0001863,2]
[329333318,1718253056791,-1019.512331,0.0001863,2]
[329333319,1718253056801,-1019.512331,0.0001863,2]
[329333320,1718253056824,-151.0,0.0001863,2]
[329333321,1718253056835,-263.264136,0.0001863,2]
[329333322,1718253056857,-500.0,0.0001863,2]
[329333323,1718253056876,-2017.49,0.0001863,2]
[329333324,1718253056893,-500.0,0.0001863,2]
[329333325,1718253056906,-151.0,0.0001863,2]
[329333326,1718253056953,-250.0,0.0001863,2]
[329333327,1718253056973,-242.4,0.00018684,2]
[329333328,1718253056992,-2050.84953384,0.00018736,2]
[329333329,1718253057004,-151.0,0.00018883,2]
[329333330,1718253057015,-242.4,0.00018885,2]
[329333331,1718253057028,-938.98252434,0.000189,2]
[329333332,1718253057039,-151.0,0.00018903,2]
[329333333,1718253057052,-319.394004,0.00018903,2]
[329333334,1718253057064,-319.394004,0.00018903,2]
[329333335,1718253057075,-151.0,0.00018903,2]
[329333336,1718253057085,-151.0,0.00018903,2]
[329333337,1718253057095,-449.701663,0.00018903,2]
[329333338,1718253057107,-449.701663,0.00018903,2]
[329333339,1718253057120,-295.79539,0.00018903,2]
[329333340,1718253057130,-295.79539,0.00018903,2]
[329333341,1718253057141,-151.0,0.00018903,2]
[329333342,1718253057152,-580.245543,0.00018903,2]
[329333343,1718253057162,-580.245543,0.00018903,2]
[329333344,1718253057172,-593.511182,0.00018903,2]
[329333345,1718253057182,-593.511182,0.00018903,2]
[329333346,1718253057193,-153.574952,0.00018903,2]
[329333347,1718253057203,-500.0,0.00018904,2]
[329333348,1718253057214,-151.0,0.00018904,2]
[329333349,1718253057225,-500.0,0.00018904,2]
[329333350,1718253057235,-1173.980648,0.00018904,2]
[329333351,1718253057247,-1173.980648,0.00018904,2]
[329333352,1718253057258,-151.0,0.00018904,2]
[329333353,1718253057269,-2836.97,0.00018904,2]
[329333354,1718253057279,-152.058189,0.00018904,2]
[329333355,1718253057290,-500.0,0.00018904,2]
[329333356,1718253057301,-151.0,0.00018904,2]
[329333357,1718253057311,-569.721875,0.00018904,2]
[329333358,1718253057322,-195.29626967,0.00018904,2]
[329333359,1718253057334,-569.721875,0.00018904,2]
[329333360,1718253057344,-151.0,0.00018904,2]
[329333361,1718253057360,-616.6,0.00018904,2]
[329333362,1718253057372,-151.0,0.00018904,2]
[329333363,1718253057387,-678.18,0.00018904,2]
[329333364,1718253057405,-500.0,0.00018904,2]
[329333365,1718253057418,-1381.4,0.00018904,2]
[329333366,1718253057430,-500.0,0.00018904,2]
[329333367,1718253057444,-151.0,0.00018904,2]
[329333368,1718253057456,-1134.36,0.00018904,2]
[329333369,1718253057468,-763.32,0.00018904,2]
[329333370,1718253057485,-587.11,0.00018904,2]
[329333371,1718253057499,-800.32,0.00018904,2]
[329333372,1718253057515,-500.0,0.00018904,2]
[329333373,1718253057526,-914.89,0.00018904,2]
[329333374,1718253057545,-1764.78,0.00018904,2]
[329333375,1718253057559,-500.0,0.00018904,2]
[329333376,1718253057570,-500.0,0.00018904,2]
[329333377,1718253057583,-400.64001311,0.00018904,2]
[329333378,1718253057604,-4676.78,0.00018904,2]
[329333379,1718253057632,-604.2,0.00018904,2]
[329333380,1718253057663,-2858.68,0.00018904,2]
[329333381,1718253057674,-500.0,0.00018904,2]
[329333382,1718253057686,-151.0,0.00018904,2]
[329333383,1718253057697,-4194.98,0.00018904,2]
[329333384,1718253057708,-1170.63,0.00018904,2]
[329333385,1718253057725,-627.66,0.00018904,2]
[329333386,1718253057738,-1382.93,0.00018904,2]
[329333387,1718253057752,-500.0,0.00018904,2]
[329333388,1718253057782,-1578.675525,0.00018904,2]
[329333389,1718253057799,-264.605845,0.00018904,2]
[329333390,1718253057809,-1578.675525,0.00018904,2]
[329333391,1718253057821,-1019.512331,0.00018904,2]
[329333392,1718253057831,-1019.512331,0.00018904,2]
[329333393,1718253057842,-152.157753,0.00018904,2]
[329333394,1718253057857,-500.0,0.00018904,2]
[329333395,1718253057869,-2017.49,0.00018904,2]
[329333396,1718253057883,-500.0,0.00018904,2]
[329333397,1718253057900,-151.0,0.00018904,2]
[329333398,1718253057916,-240.1475,0.00018905,2]
[329333399,1718253057932,-8970.83433799,0.00019,2]
[329333400,1718253057944,-7271.83096458,0.00019,2]
[329333401,1718253057965,-394.24290711,0.00019,2]
[329333402,1718253057990,-163.55153862,0.00019,2]
[329333403,1718253058004,-319.394004,0.00019,2]
[329333404,1718253058020,-319.394004,0.00019,2]
[329333405,1718253058042,-151.0,0.00019,2]
[329333406,1718253058066,-151.0,0.00019,2]
[329333407,1718253058085,-449.701663,0.00019,2]
[329333408,1718253058104,-449.701663,0.00019,2]
[329333409,1718253058118,-295.79539,0.00019,2]
[329333410,1718253058132,-295.79539,0.00019,2]
[329333411,1718253058148,-151.0,0.00019,2]
[329333412,1718253058184,-580.245543,0.00019,2]
[329333413,1718253058213,-580.245543,0.00019,2]
[329333414,1718253058230,-593.511182,0.00019,2]
[329333415,1718253058248,-151.0,0.00019,2]
[329333416,1718253058268,-593.511182,0.00019,2]
[329333417,1718253058290,-295.2312591,0.00019037,2]
[329333418,1718253058303,-292.5693121,0.00019037,2]
[329333419,1718253058327,-292.5693121,0.00019037,2]
[329333420,1718253058348,-292.5693121,0.00019037,2]
[329333421,1718253058368,-292.5693121,0.00019037,2]
[329333422,1718253058385,-292.5693121,0.00019037,2]
[329333423,1718253058408,-242.4,0.00019085,2]
[329333424,1718253058421,-201.05353347,0.00019178,2]
[329333425,1718253058436,-500.0,0.00019178,2]
[329333426,1718253058458,-353.26925003,0.00019178,2]
[329333427,1718253058475,-500.72290619,0.00019178,2]
[329333428,1718253058498,-500.0,0.00019178,2]
[329333429,1718253058513,-500.0,0.00019178,2]
[329333430,1718253058532,-397.1318367,0.00019178,2]
[329333431,1718253058554,-500.0,0.00019178,2]
[329333432,1718253058572,-500.0,0.00019178,2]
[329333433,1718253058585,-500.0,0.00019178,2]
[329333434,1718253058600,-606.27407719,0.00019178,2]
[329333435,1718253058614,-500.0,0.00019178,2]
[329333436,1718253058648,-500.0,0.00019178,2]
[329333437,1718253058659,-500.0,0.00019178,2]
[329333438,1718253058688,-200.0,0.00019178,2]
[329333439,1718253058721,-500.0,0.00019178,2]
[329333440,1718253058744,-500.0,0.00019178,2]
[329333441,1718253058774,-500.0,0.00019178,2]
[329333442,1718253058794,-500.0,0.00019178,2]
[329333443,1718253058820,-500.0,0.00019178,2]
[329333444,1718253058847,-570.33283271,0.00019178,2]
[329333445,1718253058869,-500.0,0.00019178,2]
[329333446,1718253058882,-151.0,0.00019178,2]
[329333447,1718253058898,-151.0,0.00019178,2]
[329333448,1718253058909,-500.0,0.00019178,2]
[329333449,1718253058920,-1173.980648,0.00019178,2]
[329333450,1718253058934,-1173.980648,0.00019178,2]
[329333451,1718253058957,-152.311017,0.00019178,2]
[329333452,1718253058989,-2836.97,0.00019178,2]
[329333453,1718253059000,-500.0,0.00019178,2]
[329333454,1718253059022,-151.0,0.00019178,2]
[329333455,1718253059037,-569.721875,0.00019178,2]
[329333456,1718253059052,-569.721875,0.00019178,2]
[329333457,1718253059066,-151.0,0.00019178,2]
[329333458,1718253059082,-616.6,0.00019178,2]
[329333459,1718253059092,-151.0,0.00019178,2]
[329333460,1718253059113,-678.18,0.00019178,2]
[329333461,1718253059131,-500.0,0.00019178,2]
[329333462,1718253059146,-1381.4,0.00019178,2]
[329333463,1718253059163,-500.0,0.00019178,2]
[329333464,1718253059186,-151.0,0.00019178,2]
[329333465,1718253059206,-1134.36,0.00019178,2]
[329333466,1718253059219,-763.32,0.00019178,2]
[329333467,1718253059237,-587.11,0.00019178,2]
[329333468,1718253059248,-800.32,0.00019178,2]
[329333469,1718253059261,-500.0,0.00019178,2]
[329333470,1718253059278,-914.89,0.00019178,2]
[329333471,1718253059290,-500.0,0.00019178,2]
[329333472,1718253059312,-1764.78,0.00019178,2]
[329333473,1718253059325,-500.0,0.00019178,2]
[329333474,1718253059339,-4676.78,0.00019178,2]
[329333475,1718253059351,-604.2,0.00019178,2]
[329333476,1718253059364,-2858.68,0.00019178,2]
[329333477,1718253059375,-500.0,0.00019178,2]
[329333478,1718253059386,-4194.98,0.00019178,2]
[329333479,1718253059397,-1170.63,0.00019178,2]
[329333480,1718253059408,-627.66,0.00019178,2]
[329333481,1718253059424,-1382.93,0.00019178,2]
[329333482,1718253059435,-500.0,0.00019178,2]
[329333483,1718253059449,-500.0,0.00019178,2]
[329333484,1718253059460,-566.16666616,0.00019178,2]
[329333485,1718253059774,-422.31979701,0.00014893,2]
[329333487,1718253086894,718.27,0.00010959,2]
[329333489,1718253145146,1500.0,0.00021917,30]
[329333490,1718253145575,1500.0,0.00022739,30]
[329333491,1718253233133,718.23,0.00010959,2]
[329333525,1718253529294,4392.0,0.00025,60]
[329333529,1718253749072,1500.0,0.00021917,30]
[329333530,1718253749327,662.35653389,0.00022739,30]
[329333715,1718254243166,-300.0,0.00014891,2]
[329333716,1718254243180,-1454.84571344,0.00014892,2]
[329333717,1718254243200,-14776.29021741,0.00014892,2]
[329333718,1718254243284,-2091.14007647,0.00014892,2]
[329333719,1718254247361,-3886.01974453,0.00014892,2]
[329333720,1718254247373,-9694.52384567,0.00014893,2]
[329333721,1718254247385,-253.6003127,0.00015155,2]
[329333722,1718254247397,-522.8188105,0.00016338,2]
[329333723,1718254247413,-420.0,0.0001638,2]
[329333724,1718254247427,-1343.38519329,0.00016436,2]
[329333725,1718254247453,-155.02015262,0.00016436,2]
[329333726,1718254247509,-156.46329048,0.00016436,2]
[329333727,1718254247537,-155.17444303,0.00016436,2]
[329333728,1718254247551,-487.86167557,0.00016437,2]
[329333729,1718254247571,-516.36769812,0.00016437,2]
[329333730,1718254247582,-500.0,0.00016438,2]
[329333731,1718254247601,-502.97282869,0.00016438,2]
[329333732,1718254247613,-502.41203932,0.00016438,2]
[329333733,1718254247632,-554.32114719,0.00016438,2]
[329333734,1718254247648,-199.70897713,0.00016438,2]
[329333735,1718254247681,-500.0,0.00016438,2]
[329333736,1718254247693,-502.47451824,0.00016438,2]
[329333737,1718254247714,-510.81050759,0.00016438,2]
[329333741,1718254247736,-504.69321142,0.00016438,2]
[329333743,1718254247756,-500.0,0.00016438,2]
[329333745,1718254247776,-500.0,0.00016438,2]
[329333746,1718254247800,-500.0,0.00016438,2]
[329333747,1718254247814,-509.02,0.00016438,2]
[329333748,1718254247832,-501.91235019,0.00016438,2]
[329333749,1718254247843,-500.37175536,0.00016438,2]
[329333750,1718254247860,-500.0,0.00016438,2]
[329333751,1718254247871,-500.0,0.00016438,2]
[329333752,1718254247896,-500.0,0.00016438,2]
[329333753,1718254247907,-500.0,0.00016438,2]
[329333754,1718254247921,-500.0,0.00016438,2]
[329333755,1718254247933,-500.0,0.00016438,2]
[329333756,1718254247947,-500.0,0.00016438,2]
[329333757,1718254247959,-500.0,0.00016438,2]
[329333758,1718254247972,-500.0,0.00016438,2]
[329333759,1718254247986,-500.0,0.00016438,2]
[329333761,1718254247998,-500.0,0.00016438,2]
[329333763,1718254248012,-535.00927245,0.00016438,2]
[329333764,1718254248044,-500.0,0.00016438,2]
[329333765,1718254248065,-500.0,0.00016438,2]
[329333767,1718254248078,-500.0,0.00016438,2]
[329333769,1718254248090,-500.0,0.00016438,2]
[329333770,1718254248103,-500.0,0.00016438,2]
[329333771,1718254248119,-500.0,0.00016438,4]
[329333772,1718254248132,-500.0,0.00016438,2]
[329333773,1718254248144,-500.0,0.00016438,2]
[329333774,1718254248156,-500.0,0.00016438,2]
[329333775,1718254248167,-500.0,0.00016438,2]
[329333776,1718254248179,-502.50707522,0.00016438,2]
[329333777,1718254248192,-500.0,0.00016438,2]
[329333778,1718254248204,-500.0,0.00016438,2]
[329333779,1718254248218,-500.0,0.00016438,2]
[329333780,1718254248230,-500.0,0.00016438,2]
[329333782,1718254248241,-500.0,0.00016438,2]
[329333783,1718254248257,-646.6945969,0.00016438,2]
[329333784,1718254248288,-500.0,0.00016438,2]
[329333785,1718254248302,-500.0,0.00016438,2]
[329333786,1718254248315,-2127.73,0.00016438,2]
[329333787,1718254248336,-512.12462731,0.00016438,2]
[329333788,1718254248347,-500.0,0.00016438,2]
[329333789,1718254248357,-500.0,0.00016438,2]
[329333790,1718254248369,-500.0,0.00016438,2]
[329333791,1718254248380,-581.89227138,0.00016438,2]
[329333792,1718254248392,-500.0,0.00016438,2]
[329333793,1718254248403,-500.0,0.00016438,2]
[329333794,1718254248413,-500.0,0.00016438,2]
[329333795,1718254248424,-500.0,0.00016438,2]
[329333796,1718254248435,-500.0,0.00016438,2]
[329333797,1718254248446,-500.0,0.00016438,2]
[329333798,1718254248457,-500.0,0.00016438,2]
[329333799,1718254248478,-500.0,0.00016438,2]
[329333800,1718254248488,-500.0,0.00016438,2]
[329333801,1718254248498,-154.77325878,0.00016438,2]
[329333802,1718254248529,-500.0,0.00016438,2]
[329333803,1718254248548,-500.0,0.00016438,2]
[329333804,1718254248559,-500.0,0.00016438,2]
[329333805,1718254248576,-564.68,0.00016438,2]
[329333806,1718254248592,-500.0,0.00016438,2]
[329333807,1718254248608,-502.83845032,0.00016438,2]
[329333808,1718254248620,-500.0,0.00016438,2]
[329333809,1718254248633,-500.0,0.00016438,2]
[329333810,1718254248647,-500.0,0.00016438,2]
[329333811,1718254248661,-500.0,0.00016438,2]
[329333812,1718254248673,-510.95584257,0.00016438,2]
[329333813,1718254248690,-500.0,0.00016438,2]
[329333814,1718254248702,-500.0,0.00016438,2]
[329333815,1718254248714,-500.0,0.00016438,2]
[329333816,1718254248728,-500.0,0.00016438,2]
[329333818,1718254248749,-500.0,0.00016438,2]
[329333820,1718254248774,-502.70369893,0.00016438,2]
[329333821,1718254248786,-301.86469276,0.00016438,2]
[329333822,1718254248802,-1214.33,0.00016438,2]
[329333823,1718254248819,-500.0,0.00016438,2]
[329333824,1718254248852,-215.77163035,0.00016438,2]
[329333825,1718254248864,-500.0,0.00016438,2]
[329333826,1718254248875,-500.0,0.00016438,2]
[329333827,1718254248886,-500.0,0.00016438,2]
[329333828,1718254248897,-1121.52,0.00016438,2]
[329333829,1718254248907,-500.0,0.00016438,2]
[329333830,1718254248919,-500.0,0.00016438,2]
[329333832,1718254249070,-500.0,0.00016438,2]
[329333833,1718254249084,-500.0,0.00016438,2]
[329333834,1718254249097,-500.0,0.00016438,2]
[329333835,1718254249118,-1059.12,0.00016438,2]
[329333836,1718254249130,-500.0,0.00016438,2]
[329333837,1718254249144,-500.0,0.00016438,2]
[329333838,1718254249173,-500.0,0.00016438,2]
[329333839,1718254249187,-674.39,0.00016438,2]
[329333841,1718254249244,-510.93188732,0.00016438,2]
[329333843,1718254249255,-524.35,0.00016438,2]
[329333844,1718254249265,-507.80413817,0.00016438,2]
[329333845,1718254249275,-500.0,0.00016438,2]
[329333846,1718254249286,-296.17395839,0.00016438,2]
[329333847,1718254249296,-500.0,0.00016438,2]
[329333848,1718254249314,-453.90444358,0.00016438,2]
[329333849,1718254249324,-504.36818227,0.00016438,2]
[329333850,1718254249335,-811.99,0.00016438,2]
[329333851,1718254249347,-500.0,0.00016438,2]
[329333852,1718254249358,-500.0,0.00016438,2]
[329333853,1718254249369,-500.0,0.00016438,2]
[329333854,1718254249393,-500.0,0.00016438,2]
[329333855,1718254249404,-500.0,0.00016438,2]
[329333856,1718254249415,-500.0,0.00016438,2]
[329333857,1718254249430,-500.0,0.00016438,2]
[329333858,1718254249457,-440.14971195,0.00016438,2]
[329333859,1718254249468,-1753.78,0.00016438,2]
[329333860,1718254249494,-500.0,0.00016438,2]
[329333861,1718254249509,-516.7258011,0.00016438,2]
[329333862,1718254249521,-405.9853683,0.00016438,2]
[329333863,1718254249536,-508.2248488,0.00016438,2]
[329333864,1718254249566,-500.0,0.00016438,2]
[329333865,1718254249577,-506.12243762,0.00016438,2]
[329333866,1718254249592,-500.0,0.00016438,2]
[329333867,1718254249604,-500.0,0.00016438,2]
[329333868,1718254249625,-500.0,0.00016438,2]
[329333869,1718254249643,-500.0,0.00016438,2]
[329333870,1718254249661,-500.0,0.00016438,2]
[329333871,1718254249678,-2947.56,0.00016438,2]
[329333872,1718254249694,-5102.62,0.00016438,2]
[329333873,1718254249725,-500.0,0.00016438,2]
[329333874,1718254249743,-628.81,0.00016438,2]
[329333875,1718254249756,-1214.34,0.00016438,2]
[329333876,1718254249770,-500.0,0.00016438,2]
[329333877,1718254249793,-500.0,0.00016438,2]
[329333878,1718254249805,-500.0,0.00016438,2]
[329333879,1718254249817,-500.0,0.00016438,2]
[329333880,1718254249829,-500.0,0.00016438,2]
[329333881,1718254249842,-500.0,0.00016438,2]
[329333882,1718254249858,-500.0,0.00016438,2]
[329333883,1718254249884,-3891.73,0.00016438,2]
[329333884,1718254249896,-500.0,0.00016438,2]
[329333885,1718254249913,-500.0,0.00016438,2]
[329333886,1718254249929,-1329.33,0.00016438,2]
[329333887,1718254249945,-502.85401392,0.00016438,2]
[329333888,1718254249964,-500.0,0.00016438,2]
[329333889,1718254249982,-500.0,0.00016438,2]
[329333890,1718254249993,-500.0,0.00016438,2]
[329333891,1718254250013,-500.0,0.00016438,2]
[329333892,1718254250047,-500.0,0.00016438,2]
[329333893,1718254250063,-500.0,0.00016438,2]
[329333894,1718254250074,-500.0,0.00016438,2]
[329333895,1718254250089,-500.0,0.00016438,2]
[329333896,1718254250105,-500.0,0.00016438,2]
[329333897,1718254250122,-500.0,0.00016438,2]
[329333898,1718254250135,-500.0,0.00016438,2]
[329333899,1718254250151,-500.0,0.00016438,2]
[329333900,1718254250167,-500.0,0.00016438,2]
[329333901,1718254250181,-504.04090387,0.00016438,2]
[329333902,1718254250195,-634.13,0.00016438,2]
[329333903,1718254250209,-500.0,0.00016438,2]
[329333904,1718254250224,-500.0,0.00016438,2]
[329333905,1718254250235,-500.0,0.00016438,2]
[329333906,1718254250249,-500.0,0.00016438,2]
[329333907,1718254250262,-500.0,0.00016438,2]
[329333908,1718254250282,-2031.6,0.00016438,2]
[329333909,1718254250298,-500.0,0.00016438,2]
[329333910,1718254250309,-500.0,0.00016438,2]
[329333911,1718254250323,-500.0,0.00016438,2]
[329333912,1718254250335,-500.0,0.00016438,2]
[329333913,1718254250347,-500.0,0.00016438,2]
[329333914,1718254250358,-500.0,0.00016438,2]
[329333915,1718254250369,-500.0,0.00016438,2]
[329333916,1718254250379,-500.0,0.00016438,2]
[329333917,1718254250390,-500.0,0.00016438,2]
[329333918,1718254250401,-500.0,0.00016438,2]
[329333919,1718254250412,-500.0,0.00016438,2]
[329333920,1718254250423,-175.60271591,0.00016438,2]
[329333921,1718254250434,-500.0,0.00016438,2]
[329333922,1718254250444,-500.0,0.00016438,2]
[329333923,1718254250456,-500.0,0.00016438,2]
[329333924,1718254250471,-500.0,0.00016711,2]
[329333925,1718254250482,-500.0,0.00016711,2]
[329333926,1718254250493,-502.56398246,0.00016711,2]
[329333927,1718254250504,-503.1202979,0.00016712,2]
[329333928,1718254250516,-500.0,0.00016712,2]
[329333929,1718254250529,-500.0,0.00016712,2]
[329333930,1718254250540,-509.02,0.00016712,2]
[329333931,1718254250551,-500.0,0.00016712,2]
[329333932,1718254250575,-500.0,0.00016712,2]
[329333933,1718254250587,-510.3445727,0.00016712,2]
[329333934,1718254250602,-509.08859947,0.00016712,2]
[329333935,1718254250614,-500.0,0.00016712,2]
[329333936,1718254250625,-500.0,0.00016712,2]
[329333937,1718254250636,-500.0,0.00016712,2]
[329333938,1718254250646,-500.0,0.00016712,4]
[329333939,1718254250658,-500.0,0.00016712,2]
[329333940,1718254250668,-500.0,0.00016712,2]
[329333941,1718254250681,-500.0,0.00016712,2]
[329333942,1718254250692,-500.0,0.00016712,2]
[329333943,1718254250705,-500.0,0.00016712,2]
[329333944,1718254250721,-515.20424275,0.00016712,2]
[329333945,1718254250731,-500.0,0.00016712,2]
[329333946,1718254250742,-2127.73,0.00016712,2]
[329333947,1718254250753,-500.0,0.00016712,2]
[329333948,1718254250763,-500.0,0.00016712,2]
[329333949,1718254250774,-500.0,0.00016712,2]
[329333950,1718254250785,-500.0,0.00016712,2]
[329333951,1718254250795,-525.18777761,0.00016712,2]
[329333952,1718254250806,-500.0,0.00016712,2]
[329333953,1718254250817,-500.0,0.00016712,2]
[329333954,1718254250828,-353.05285413,0.00016712,2]
[329333955,1718254250838,-500.0,0.00016712,2]
[329333956,1718254250848,-500.0,0.00016712,2]
[329333957,1718254250859,-564.68,0.00016712,2]
[329333958,1718254250869,-500.0,0.00016712,2]
[329333959,1718254250880,-500.0,0.00016712,2]
[329333960,1718254250891,-505.98699661,0.00016712,2]
[329333961,1718254250901,-500.0,0.00016712,2]
[329333962,1718254250912,-457.5668634,0.00016712,2]
[329333963,1718254250923,-500.0,0.00016712,2]
[329333964,1718254250935,-500.0,0.00016712,2]
[329333965,1718254250946,-1214.33,0.00016712,2]
[329333966,1718254250963,-500.0,0.00016712,2]
[329333967,1718254250981,-500.0,0.00016712,2]
[329333968,1718254250997,-500.0,0.00016712,2]
[329333969,1718254251008,-1121.52,0.00016712,2]
[329333970,1718254251048,-500.0,0.00016712,2]
[329333971,1718254251061,-500.0,0.00016712,2]
[329333972,1718254251074,-500.0,0.00016712,2]
[329333973,1718254251085,-1059.12,0.00016712,2]
[329333974,1718254251098,-500.0,0.00016712,2]
[329333975,1718254251110,-500.0,0.00016712,2]
[329333976,1718254251121,-674.39,0.00016712,2]
[329333977,1718254251133,-524.35,0.00016712,2]
[329333978,1718254251144,-811.99,0.00016712,2]
[329333979,1718254251155,-500.0,0.00016712,2]
[329333980,1718254251166,-500.0,0.00016712,2]
[329333981,1718254251177,-500.0,0.00016712,2]
[329333982,1718254251187,-500.0,0.00016712,2]
[329333983,1718254251198,-505.76896261,0.00016712,2]
[329333984,1718254251210,-500.0,0.00016712,2]
[329333985,1718254251222,-1753.78,0.00016712,2]
[329333986,1718254251234,-500.0,0.00016712,2]
[329333987,1718254251245,-500.0,0.00016712,2]
[329333988,1718254251255,-500.0,0.00016712,2]
[329333989,1718254251267,-500.0,0.00016712,2]
[329333990,1718254251279,-500.0,0.00016712,2]
[329333991,1718254251295,-500.0,0.00016712,2]
[329333992,1718254251316,-500.0,0.00016712,2]
[329333993,1718254251328,-2947.56,0.00016712,2]
[329333994,1718254251340,-5102.62,0.00016712,2]
[329333995,1718254251352,-500.0,0.00016712,2]